[Event "Early-Titled-Tuesday-Blitz-February-13-2024"]
[Site "Chess.com"]
[Date "2024.02.13"]
[Round "6"]
[White "AlexPapasimakopoulos"]
[Black "ejam94"]
[Result "1-0"]
[WhiteElo "2720"]
[BlackElo "2511"]
[TimeControl "180+1"]
[EndTime "9:08:29 PST"]
[Termination "AlexPapasimakopoulos won by resignation"]

1. d4 {[%clk 0:03:00.9]} 1... Nf6 {[%clk 0:02:55.7]} 2. c4 {[%clk 0:03:01.3]}
2... g6 {[%clk 0:02:54.5]} 3. Nc3 {[%clk 0:03:01.7]} 3... Bg7 {[%clk 0:02:54.5]}
4. Bg5 {[%clk 0:03:02.2]} 4... O-O {[%clk 0:02:54.4]} 5. e3 {[%clk 0:03:02.8]}
5... d6 {[%clk 0:02:54.5]} 6. Nf3 {[%clk 0:03:03.3]} 6... b6 {[%clk 0:02:54.5]}
7. Be2 {[%clk 0:03:03.7]} 7... Bb7 {[%clk 0:02:54]} 8. O-O {[%clk 0:03:04.4]}
8... c5 {[%clk 0:02:54.4]} 9. d5 {[%clk 0:02:59.9]} 9... a6 {[%clk 0:02:51.6]}
10. a4 {[%clk 0:02:59.7]} 10... Nbd7 {[%clk 0:02:50.4]} 11. h3 {[%clk
0:02:58.8]} 11... h6 {[%clk 0:02:44.2]} 12. Bf4 {[%clk 0:02:56.3]} 12... Nh5
{[%clk 0:02:00.7]} 13. Bh2 {[%clk 0:02:48.6]} 13... Bxc3 {[%clk 0:01:52.1]} 14.
bxc3 {[%clk 0:02:48.2]} 14... Kg7 {[%clk 0:01:45.1]} 15. e4 {[%clk 0:02:45]}
15... Nhf6 {[%clk 0:01:33.7]} 16. e5 {[%clk 0:02:39.6]} 16... dxe5 {[%clk
0:01:30.5]} 17. Nxe5 {[%clk 0:02:39.5]} 17... Nxe5 {[%clk 0:01:26.6]} 18. Bxe5
{[%clk 0:02:40.4]} 18... Kg8 {[%clk 0:01:25.9]} 19. Qd2 {[%clk 0:02:38.4]} 19...
Kh7 {[%clk 0:01:24.3]} 20. Qf4 {[%clk 0:02:28.5]} 20... Nd7 {[%clk 0:01:22.2]}
21. Bc7 {[%clk 0:02:27]} 21... Qc8 {[%clk 0:01:20.5]} 22. Bg4 {[%clk 0:02:24]}
22... f5 {[%clk 0:01:16.8]} 23. Rfe1 {[%clk 0:02:09.4]} 23... Rf7 {[%clk
0:01:02.7]} 24. h4 {[%clk 0:02:07]} 24... Qg8 {[%clk 0:00:37.8]} 25. Be2 {[%clk
0:01:49.4]} 25... g5 {[%clk 0:00:25.9]} 26. hxg5 {[%clk 0:01:47.3]} 26... hxg5
{[%clk 0:00:17.3]} 27. Qg3 {[%clk 0:01:47.1]} 27... Raf8 {[%clk 0:00:06.2]} 28.
Bh5 {[%clk 0:01:43]} 28... Rg7 {[%clk 0:00:04.8]} 29. Qh2 {[%clk 0:01:39.1]}
29... Rf6 {[%clk 0:00:04.1]} 30. Bf7+ {[%clk 0:01:38.2]} 30... Rh6 {[%clk
0:00:03.5]} 31. Bxg8+ {[%clk 0:01:38.6]} 1-0

[Event "Early-Titled-Tuesday-Blitz-February-13-2024"]
[Site "Chess.com"]
[Date "2024.02.13"]
[Round "6"]
[White "Atousa"]
[Black "ClaudiaSof"]
[Result "1-0"]
[WhiteElo "2518"]
[BlackElo "2311"]
[TimeControl "180+1"]
[EndTime "9:08:33 PST"]
[Termination "Atousa won by resignation"]

1. d4 {[%clk 0:02:58.3]} 1... Nf6 {[%clk 0:02:40.7]} 2. Nf3 {[%clk 0:02:57.3]}
2... g6 {[%clk 0:02:38.5]} 3. g3 {[%clk 0:02:57.3]} 3... Bg7 {[%clk 0:02:35.6]}
4. Bg2 {[%clk 0:02:57.9]} 4... d6 {[%clk 0:02:34.9]} 5. O-O {[%clk 0:02:58.4]}
5... O-O {[%clk 0:02:33.8]} 6. c4 {[%clk 0:02:59.1]} 6... Nc6 {[%clk 0:02:33.2]}
7. Nc3 {[%clk 0:02:59.3]} 7... e5 {[%clk 0:02:33.2]} 8. dxe5 {[%clk 0:02:38]}
8... Nxe5 {[%clk 0:02:32.1]} 9. Nxe5 {[%clk 0:02:28.3]} 9... dxe5 {[%clk
0:02:31.6]} 10. Qc2 {[%clk 0:02:26.3]} 10... c6 {[%clk 0:02:30.1]} 11. b3 {[%clk
0:02:23.3]} 11... Qe7 {[%clk 0:02:19.9]} 12. a4 {[%clk 0:02:18.8]} 12... Rd8
{[%clk 0:02:18.7]} 13. Ba3 {[%clk 0:02:15.5]} 13... Qc7 {[%clk 0:02:16.5]} 14.
Rad1 {[%clk 0:02:01.1]} 14... Bf5 {[%clk 0:02:15]} 15. e4 {[%clk 0:01:59.3]}
15... Bg4 {[%clk 0:02:13.8]} 16. f3 {[%clk 0:01:58.4]} 16... Be6 {[%clk
0:02:13.3]} 17. Kh1 {[%clk 0:01:57]} 17... b6 {[%clk 0:02:00.3]} 18. c5 {[%clk
0:01:39.8]} 18... h5 {[%clk 0:01:58.3]} 19. h4 {[%clk 0:01:29]} 19... Bh6 {[%clk
0:01:51.6]} 20. Rd6 {[%clk 0:01:22.9]} 20... Be3 {[%clk 0:01:45.3]} 21. Rfd1
{[%clk 0:01:13.8]} 21... Bd4 {[%clk 0:01:44.1]} 22. cxb6 {[%clk 0:01:06.9]}
22... axb6 {[%clk 0:01:43.3]} 23. Nb5 {[%clk 0:01:05.8]} 23... Qe7 {[%clk
0:01:18.2]} 24. R6xd4 {[%clk 0:00:51.7]} 24... Qe8 {[%clk 0:00:54.2]} 25. Nc7
{[%clk 0:00:45.4]} 1-0

[Event "Early-Titled-Tuesday-Blitz-February-13-2024"]
[Site "Chess.com"]
[Date "2024.02.13"]
[Round "6"]
[White "kids2010"]
[Black "lachesisQ"]
[Result "0-1"]
[WhiteElo "2828"]
[BlackElo "3057"]
[TimeControl "180+1"]
[EndTime "9:08:35 PST"]
[Termination "lachesisQ won by resignation"]

1. e4 {[%clk 0:03:00.9]} 1... c5 {[%clk 0:02:59.5]} 2. c3 {[%clk 0:03:01.1]}
2... e6 {[%clk 0:03:00.3]} 3. d4 {[%clk 0:03:00.7]} 3... d5 {[%clk 0:03:00.7]}
4. exd5 {[%clk 0:03:01.5]} 4... Qxd5 {[%clk 0:03:00.5]} 5. Nf3 {[%clk 0:03:01]}
5... Nf6 {[%clk 0:03:00.3]} 6. Na3 {[%clk 0:02:58.7]} 6... Qd8 {[%clk
0:02:59.1]} 7. Nc4 {[%clk 0:02:56.9]} 7... Nc6 {[%clk 0:02:56.1]} 8. Be3 {[%clk
0:02:52.2]} 8... Nd5 {[%clk 0:02:38.1]} 9. Bg5 {[%clk 0:02:42.8]} 9... f6 {[%clk
0:02:36.5]} 10. Bh4 {[%clk 0:02:43.1]} 10... Be7 {[%clk 0:02:26.1]} 11. Bg3
{[%clk 0:02:23]} 11... cxd4 {[%clk 0:02:12.3]} 12. Nxd4 {[%clk 0:02:22.5]} 12...
e5 {[%clk 0:02:08.6]} 13. Nc2 {[%clk 0:01:49.5]} 13... Be6 {[%clk 0:02:03.2]}
14. Be2 {[%clk 0:01:40.5]} 14... O-O {[%clk 0:02:02.2]} 15. O-O {[%clk
0:01:40.5]} 15... Qe8 {[%clk 0:02:00.8]} 16. h3 {[%clk 0:01:31.8]} 16... Rd8
{[%clk 0:02:00.3]} 17. Qe1 {[%clk 0:01:31.7]} 17... Qg6 {[%clk 0:01:53.2]} 18.
Rd1 {[%clk 0:01:15.7]} 18... Qxc2 {[%clk 0:01:48.9]} 19. Bd3 {[%clk 0:01:04.1]}
19... Qa4 {[%clk 0:01:48.4]} 20. b3 {[%clk 0:01:00.6]} 20... Qxa2 {[%clk
0:01:46.9]} 21. b4 {[%clk 0:00:30.8]} 21... Ndxb4 {[%clk 0:01:36.4]} 22. cxb4
{[%clk 0:00:20.5]} 22... Bxc4 {[%clk 0:01:29.8]} 23. Rd2 {[%clk 0:00:18.8]}
23... Qb3 {[%clk 0:01:23.7]} 24. Bc2 {[%clk 0:00:19.2]} 24... Qxb4 {[%clk
0:01:23.7]} 25. Rxd8 {[%clk 0:00:18.2]} 25... Bxd8 {[%clk 0:01:10.6]} 26. Qe4
{[%clk 0:00:17.9]} 26... f5 {[%clk 0:01:10.1]} 0-1

[Event "Early-Titled-Tuesday-Blitz-February-13-2024"]
[Site "Chess.com"]
[Date "2024.02.13"]
[Round "6"]
[White "Zurability"]
[Black "Msb2"]
[Result "0-1"]
[WhiteElo "2745"]
[BlackElo "2988"]
[TimeControl "180+1"]
[EndTime "9:08:41 PST"]
[Termination "Msb2 won by resignation"]

1. Nf3 {[%clk 0:03:00.9]} 1... d5 {[%clk 0:02:58.6]} 2. g3 {[%clk 0:03:00.9]}
2... e6 {[%clk 0:02:58.9]} 3. Bg2 {[%clk 0:03:01.1]} 3... Nf6 {[%clk 0:02:59.7]}
4. O-O {[%clk 0:03:02]} 4... Bd6 {[%clk 0:03:00.2]} 5. c4 {[%clk 0:02:58.8]}
5... O-O {[%clk 0:03:00.3]} 6. d4 {[%clk 0:02:59.4]} 6... Nc6 {[%clk 0:03:00.8]}
7. Bg5 {[%clk 0:02:55.9]} 7... h6 {[%clk 0:03:00.7]} 8. Bxf6 {[%clk 0:02:56.2]}
8... Qxf6 {[%clk 0:03:01.6]} 9. e3 {[%clk 0:02:42.7]} 9... dxc4 {[%clk
0:03:01.7]} 10. Nfd2 {[%clk 0:02:09.8]} 10... e5 {[%clk 0:03:00.7]} 11. d5
{[%clk 0:02:08.3]} 11... Na5 {[%clk 0:03:01]} 12. Qa4 {[%clk 0:02:00.2]} 12...
b6 {[%clk 0:03:01.4]} 13. Nxc4 {[%clk 0:01:45.8]} 13... Nxc4 {[%clk 0:03:02.3]}
14. Qxc4 {[%clk 0:01:45.7]} 14... Qe7 {[%clk 0:03:02.8]} 15. Nc3 {[%clk
0:01:38.5]} 15... f5 {[%clk 0:03:02]} 16. Rfc1 {[%clk 0:01:32.8]} 16... a6
{[%clk 0:03:00.3]} 17. Rc2 {[%clk 0:01:26.6]} 17... Bd7 {[%clk 0:02:59.5]} 18.
Rac1 {[%clk 0:01:26.8]} 18... b5 {[%clk 0:02:59.6]} 19. Qd3 {[%clk 0:01:21.3]}
19... Kh8 {[%clk 0:02:59.8]} 20. Nb1 {[%clk 0:01:14.6]} 20... f4 {[%clk
0:02:51.7]} 21. Nd2 {[%clk 0:01:08.9]} 21... f3 {[%clk 0:02:25.3]} 22. Bf1
{[%clk 0:00:48.2]} 22... Rae8 {[%clk 0:02:19.2]} 23. e4 {[%clk 0:00:43.8]} 23...
Bg4 {[%clk 0:02:12.1]} 24. h3 {[%clk 0:00:42.3]} 24... Bh5 {[%clk 0:02:11.8]}
25. a3 {[%clk 0:00:37.9]} 25... Qg5 {[%clk 0:02:09.8]} 26. Nb3 {[%clk
0:00:35.5]} 26... Bg6 {[%clk 0:01:55.7]} 27. Nc5 {[%clk 0:00:34.6]} 27... h5
{[%clk 0:01:34.2]} 28. h4 {[%clk 0:00:32]} 28... Qg4 {[%clk 0:01:34.4]} 29. Re1
{[%clk 0:00:26.7]} 29... Bxc5 {[%clk 0:01:21.5]} 30. Rxc5 {[%clk 0:00:26.3]}
30... Qxg3+ {[%clk 0:01:22]} 31. fxg3 {[%clk 0:00:05.1]} 31... f2+ {[%clk
0:01:22.9]} 0-1

[Event "Early-Titled-Tuesday-Blitz-February-13-2024"]
[Site "Chess.com"]
[Date "2024.02.13"]
[Round "6"]
[White "jk13"]
[Black "AwareIdea"]
[Result "1-0"]
[WhiteElo "2667"]
[BlackElo "2520"]
[TimeControl "180+1"]
[EndTime "9:08:41 PST"]
[Termination "jk13 won by resignation"]

1. e4 {[%clk 0:02:58.2]} 1... e5 {[%clk 0:02:57.7]} 2. Nf3 {[%clk 0:02:57.9]}
2... Nc6 {[%clk 0:02:57.7]} 3. Bc4 {[%clk 0:02:58.6]} 3... Bc5 {[%clk
0:02:57.4]} 4. d3 {[%clk 0:02:59.3]} 4... Nf6 {[%clk 0:02:57.3]} 5. c3 {[%clk
0:03:00.1]} 5... a6 {[%clk 0:02:56.9]} 6. Bb3 {[%clk 0:03:00.6]} 6... Ba7 {[%clk
0:02:57]} 7. Nbd2 {[%clk 0:03:01.3]} 7... d6 {[%clk 0:02:56.1]} 8. h3 {[%clk
0:03:01.6]} 8... Ne7 {[%clk 0:02:56.1]} 9. Nf1 {[%clk 0:03:01.9]} 9... Ng6
{[%clk 0:02:56.3]} 10. Ng3 {[%clk 0:03:02.7]} 10... h6 {[%clk 0:02:56.4]} 11.
O-O {[%clk 0:03:02.3]} 11... O-O {[%clk 0:02:56.3]} 12. d4 {[%clk 0:03:02.6]}
12... c6 {[%clk 0:02:55.6]} 13. Re1 {[%clk 0:03:03.1]} 13... Qe7 {[%clk
0:02:54.9]} 14. Be3 {[%clk 0:03:03.2]} 14... Re8 {[%clk 0:02:52]} 15. Qd2 {[%clk
0:03:01]} 15... Kh7 {[%clk 0:02:49]} 16. Rad1 {[%clk 0:02:59.8]} 16... Bb8
{[%clk 0:02:32.4]} 17. Bc2 {[%clk 0:02:32]} 17... Qc7 {[%clk 0:02:27.2]} 18.
dxe5 {[%clk 0:02:20.8]} 18... dxe5 {[%clk 0:02:25.5]} 19. Nf5 {[%clk 0:02:17.3]}
19... Bxf5 {[%clk 0:02:21]} 20. exf5 {[%clk 0:02:18.1]} 20... Nf4 {[%clk
0:02:14.2]} 21. Bxf4 {[%clk 0:02:11.6]} 21... exf4 {[%clk 0:02:15.1]} 22. Rxe8
{[%clk 0:02:11.9]} 22... Nxe8 {[%clk 0:02:14.9]} 23. Qd8 {[%clk 0:01:25.1]}
23... Nd6 {[%clk 0:02:03.7]} 24. Qh4 {[%clk 0:01:13.3]} 24... Ne8 {[%clk
0:01:03.3]} 25. Qd8 {[%clk 0:01:12.5]} 25... Nd6 {[%clk 0:00:40.7]} 26. f6+
{[%clk 0:01:11.3]} 26... g6 {[%clk 0:00:35.7]} 27. Qf8 {[%clk 0:01:11.3]} 1-0

[Event "Early-Titled-Tuesday-Blitz-February-13-2024"]
[Site "Chess.com"]
[Date "2024.02.13"]
[Round "6"]
[White "IwkooO"]
[Black "ATM622"]
[Result "0-1"]
[WhiteElo "2632"]
[BlackElo "2472"]
[TimeControl "180+1"]
[EndTime "9:08:43 PST"]
[Termination "ATM622 won by resignation"]

1. e4 {[%clk 0:02:54.8]} 1... c6 {[%clk 0:03:00]} 2. Nc3 {[%clk 0:02:29.6]} 2...
d5 {[%clk 0:02:59.8]} 3. d4 {[%clk 0:02:21.7]} 3... dxe4 {[%clk 0:02:59.7]} 4.
Nxe4 {[%clk 0:02:22.6]} 4... Bf5 {[%clk 0:02:59.3]} 5. Qf3 {[%clk 0:02:23.2]}
5... Bxe4 {[%clk 0:02:58.9]} 6. Qxe4 {[%clk 0:02:24.1]} 6... Nf6 {[%clk
0:02:59.4]} 7. Qd3 {[%clk 0:02:24]} 7... e6 {[%clk 0:02:58.4]} 8. g3 {[%clk
0:02:23.8]} 8... c5 {[%clk 0:02:54.2]} 9. Bg2 {[%clk 0:02:11]} 9... Nc6 {[%clk
0:02:53.9]} 10. Qb5 {[%clk 0:02:11.2]} 10... Qb6 {[%clk 0:02:52.5]} 11. Qxb6
{[%clk 0:01:52.9]} 11... axb6 {[%clk 0:02:53.4]} 12. dxc5 {[%clk 0:01:52.7]}
12... Bxc5 {[%clk 0:02:49.5]} 13. c3 {[%clk 0:01:52.8]} 13... O-O {[%clk
0:02:46.2]} 14. Nf3 {[%clk 0:01:44.9]} 14... Rad8 {[%clk 0:02:41.7]} 15. O-O
{[%clk 0:01:45.3]} 15... b5 {[%clk 0:02:39.4]} 16. a3 {[%clk 0:01:43.4]} 16...
Na5 {[%clk 0:02:32.5]} 17. Ne5 {[%clk 0:01:42.6]} 17... Nb3 {[%clk 0:02:29.1]}
18. Rb1 {[%clk 0:01:41.4]} 18... Nd5 {[%clk 0:02:28.2]} 19. Nd3 {[%clk
0:01:31.5]} 19... Bb6 {[%clk 0:02:26.1]} 20. Nf4 {[%clk 0:01:29.8]} 20... Nxc1
{[%clk 0:02:24.1]} 21. Rbxc1 {[%clk 0:01:25.5]} 21... Nxf4 {[%clk 0:02:23.7]}
22. gxf4 {[%clk 0:01:26.2]} 22... Rd2 {[%clk 0:02:22.9]} 23. b4 {[%clk
0:01:23.2]} 23... Ra8 {[%clk 0:02:20.1]} 24. Bxb7 {[%clk 0:01:21.4]} 24... Rxa3
{[%clk 0:02:19.2]} 25. Rcd1 {[%clk 0:01:12.3]} 25... Bxf2+ {[%clk 0:02:17.7]}
26. Kg2 {[%clk 0:01:12.1]} 26... Be1+ {[%clk 0:02:08.9]} 27. Rxd2 {[%clk
0:01:05.3]} 27... Bxd2 {[%clk 0:02:09.8]} 28. Rd1 {[%clk 0:01:05.6]} 28... Ra2
{[%clk 0:02:09.3]} 29. Kf3 {[%clk 0:01:04.3]} 29... f6 {[%clk 0:02:05.3]} 30.
Bc6 {[%clk 0:00:43]} 30... Rc2 {[%clk 0:02:02.7]} 31. Bxb5 {[%clk 0:00:40.9]}
31... Rxc3+ {[%clk 0:02:00.8]} 32. Kg4 {[%clk 0:00:39.3]} 32... f5+ {[%clk
0:01:58.3]} 33. Kg5 {[%clk 0:00:39.6]} 33... Rc2 {[%clk 0:01:53.6]} 34. Bd3
{[%clk 0:00:34.8]} 34... Rb2 {[%clk 0:01:53.4]} 35. b5 {[%clk 0:00:35.1]} 35...
Kf7 {[%clk 0:01:50.3]} 36. Bc4 {[%clk 0:00:31.5]} 36... h6+ {[%clk 0:01:49.6]}
37. Kh4 {[%clk 0:00:31.8]} 37... Bxf4 {[%clk 0:01:47.4]} 38. h3 {[%clk 0:00:27]}
38... Rb4 {[%clk 0:01:41.1]} 39. Rd7+ {[%clk 0:00:19.5]} 39... Kf6 {[%clk
0:01:40.6]} 40. Rd4 {[%clk 0:00:17]} 40... Be5 {[%clk 0:01:39.4]} 0-1

[Event "Early-Titled-Tuesday-Blitz-February-13-2024"]
[Site "Chess.com"]
[Date "2024.02.13"]
[Round "6"]
[White "LeoWin2012"]
[Black "PositionalPanther"]
[Result "0-1"]
[WhiteElo "2232"]
[BlackElo "2422"]
[TimeControl "180+1"]
[EndTime "9:08:43 PST"]
[Termination "PositionalPanther won by checkmate"]

1. e4 {[%clk 0:03:00.9]} 1... e6 {[%clk 0:02:58.7]} 2. d4 {[%clk 0:02:59.9]}
2... d5 {[%clk 0:02:59]} 3. exd5 {[%clk 0:03:00.8]} 3... exd5 {[%clk 0:02:57.1]}
4. Bd3 {[%clk 0:03:00.2]} 4... Bd6 {[%clk 0:02:56.8]} 5. Nf3 {[%clk 0:02:58.6]}
5... Ne7 {[%clk 0:02:57]} 6. O-O {[%clk 0:02:56.9]} 6... Bg4 {[%clk 0:02:57.1]}
7. h3 {[%clk 0:02:55.6]} 7... Bh5 {[%clk 0:02:55.2]} 8. Re1 {[%clk 0:02:49.5]}
8... Bg6 {[%clk 0:02:48.6]} 9. c3 {[%clk 0:02:48.4]} 9... Nd7 {[%clk 0:02:47.2]}
10. Be3 {[%clk 0:02:42.5]} 10... O-O {[%clk 0:02:44.7]} 11. Qc2 {[%clk
0:02:38.8]} 11... c6 {[%clk 0:02:43.2]} 12. Nbd2 {[%clk 0:02:36.1]} 12... Qc7
{[%clk 0:02:43.4]} 13. Rad1 {[%clk 0:02:27.8]} 13... Rae8 {[%clk 0:02:43.3]} 14.
Nb3 {[%clk 0:02:26.4]} 14... f5 {[%clk 0:02:31]} 15. Bg5 {[%clk 0:02:17.7]}
15... Nf6 {[%clk 0:02:28.4]} 16. Ne5 {[%clk 0:02:03.4]} 16... Ne4 {[%clk
0:02:27]} 17. Bxe7 {[%clk 0:02:01]} 17... Rxe7 {[%clk 0:02:25.3]} 18. Nxg6
{[%clk 0:02:00.4]} 18... hxg6 {[%clk 0:02:25.6]} 19. Re2 {[%clk 0:01:41.9]}
19... Rfe8 {[%clk 0:02:16.7]} 20. Rde1 {[%clk 0:01:36.8]} 20... Bh2+ {[%clk
0:02:10.1]} 21. Kf1 {[%clk 0:01:33]} 21... Qf4 {[%clk 0:02:09.1]} 22. Bxe4
{[%clk 0:01:18]} 22... fxe4 {[%clk 0:02:06.3]} 23. Qd2 {[%clk 0:01:10.9]} 23...
Qf5 {[%clk 0:01:51.8]} 24. Qc2 {[%clk 0:00:39.1]} 24... Rf8 {[%clk 0:01:43.2]}
25. Nd2 {[%clk 0:00:28.6]} 25... Ref7 {[%clk 0:01:43.1]} 26. Nb3 {[%clk
0:00:25.2]} 26... Bg3 {[%clk 0:01:39.5]} 27. Kg1 {[%clk 0:00:04.9]} 27... Bxf2+
{[%clk 0:01:39.4]} 28. Kh1 {[%clk 0:00:05.3]} 28... Bxe1 {[%clk 0:01:39.3]} 29.
Rxe1 {[%clk 0:00:06.2]} 29... Qf4 {[%clk 0:01:36.5]} 30. Nc5 {[%clk 0:00:04.5]}
30... Qg3 {[%clk 0:01:36]} 31. Rg1 {[%clk 0:00:03.8]} 31... Rf2 {[%clk
0:01:32.3]} 32. Qd1 {[%clk 0:00:02.9]} 32... R8f3 {[%clk 0:01:31.8]} 33. Ne6
{[%clk 0:00:01.8]} 33... Qxh3+ {[%clk 0:01:30.8]} 34. gxh3 {[%clk 0:00:02.4]}
34... Rxh3# {[%clk 0:01:31.7]} 0-1

[Event "Early-Titled-Tuesday-Blitz-February-13-2024"]
[Site "Chess.com"]
[Date "2024.02.13"]
[Round "6"]
[White "LuisFSiles"]
[Black "Slovineanu"]
[Result "1-0"]
[WhiteElo "2255"]
[BlackElo "2408"]
[TimeControl "180+1"]
[EndTime "9:08:45 PST"]
[Termination "LuisFSiles won by checkmate"]

1. e4 {[%clk 0:03:00.9]} 1... c6 {[%clk 0:02:58.7]} 2. d4 {[%clk 0:03:00.5]}
2... d5 {[%clk 0:02:58.9]} 3. exd5 {[%clk 0:03:00.8]} 3... cxd5 {[%clk
0:02:59.1]} 4. c4 {[%clk 0:03:01]} 4... Nf6 {[%clk 0:02:59.4]} 5. Nc3 {[%clk
0:02:59.9]} 5... e6 {[%clk 0:02:59.7]} 6. Nf3 {[%clk 0:02:58.5]} 6... Bb4 {[%clk
0:02:59.9]} 7. cxd5 {[%clk 0:02:58.3]} 7... Nxd5 {[%clk 0:03:00.4]} 8. Bd2
{[%clk 0:02:58.8]} 8... O-O {[%clk 0:03:00]} 9. Bd3 {[%clk 0:02:58.8]} 9... b6
{[%clk 0:03:00.2]} 10. Qe2 {[%clk 0:02:56.8]} 10... Bb7 {[%clk 0:02:58.7]} 11.
O-O {[%clk 0:02:55.5]} 11... Nd7 {[%clk 0:02:57.8]} 12. Rad1 {[%clk 0:02:52.5]}
12... N7f6 {[%clk 0:02:55.9]} 13. Ne5 {[%clk 0:02:50.5]} 13... Bd6 {[%clk
0:02:48.5]} 14. Bg5 {[%clk 0:02:47.5]} 14... h6 {[%clk 0:02:36.9]} 15. Bxf6
{[%clk 0:02:29.6]} 15... Nxf6 {[%clk 0:02:30.4]} 16. Bb1 {[%clk 0:02:19.9]}
16... Rc8 {[%clk 0:02:20.2]} 17. Rfe1 {[%clk 0:01:52.2]} 17... Re8 {[%clk
0:02:08.1]} 18. Qd3 {[%clk 0:01:42.3]} 18... Bb4 {[%clk 0:01:57.7]} 19. Re3
{[%clk 0:01:25.7]} 19... Kf8 {[%clk 0:01:41]} 20. Rg3 {[%clk 0:01:22.9]} 20...
Nh5 {[%clk 0:01:15.6]} 21. Nxf7 {[%clk 0:01:14]} 21... Qh4 {[%clk 0:00:51]} 22.
Ne5 {[%clk 0:01:03.6]} 22... Nf4 {[%clk 0:00:41.9]} 23. Qh7 {[%clk 0:00:55.1]}
23... Bxc3 {[%clk 0:00:20.1]} 24. Qxg7# {[%clk 0:00:46.9]} 1-0

[Event "Early-Titled-Tuesday-Blitz-February-13-2024"]
[Site "Chess.com"]
[Date "2024.02.13"]
[Round "6"]
[White "jefferyx"]
[Black "KuzubovYuriy"]
[Result "0-1"]
[WhiteElo "3014"]
[BlackElo "2947"]
[TimeControl "180+1"]
[EndTime "9:08:47 PST"]
[Termination "KuzubovYuriy won by resignation"]

1. e4 {[%clk 0:03:00.9]} 1... e6 {[%clk 0:03:00.4]} 2. d4 {[%clk 0:03:00.5]}
2... d5 {[%clk 0:03:00.9]} 3. Nc3 {[%clk 0:02:56.7]} 3... Bb4 {[%clk 0:03:00.5]}
4. e5 {[%clk 0:02:56.3]} 4... Ne7 {[%clk 0:03:00.7]} 5. a3 {[%clk 0:02:53.4]}
5... Bxc3+ {[%clk 0:03:00.5]} 6. bxc3 {[%clk 0:02:54.3]} 6... b6 {[%clk
0:03:00.7]} 7. Qg4 {[%clk 0:02:49.9]} 7... Ng6 {[%clk 0:02:59.9]} 8. h4 {[%clk
0:02:48.2]} 8... h5 {[%clk 0:03:00.1]} 9. Qg3 {[%clk 0:02:47.3]} 9... Ba6 {[%clk
0:02:59.1]} 10. Bxa6 {[%clk 0:02:38.7]} 10... Nxa6 {[%clk 0:03:00]} 11. Qd3
{[%clk 0:02:38.6]} 11... Nb8 {[%clk 0:02:59.2]} 12. Nf3 {[%clk 0:02:38.9]} 12...
Nc6 {[%clk 0:02:56.1]} 13. Ng5 {[%clk 0:02:36]} 13... Qd7 {[%clk 0:02:45.6]} 14.
Rh3 {[%clk 0:02:34.6]} 14... Nge7 {[%clk 0:02:36.8]} 15. Rf3 {[%clk 0:02:18.8]}
15... Nf5 {[%clk 0:02:34.4]} 16. Rf4 {[%clk 0:02:19.3]} 16... Na5 {[%clk
0:02:27]} 17. f3 {[%clk 0:02:19.6]} 17... O-O-O {[%clk 0:02:24.9]} 18. a4 {[%clk
0:02:09.1]} 18... Kb7 {[%clk 0:02:20.5]} 19. Qb5 {[%clk 0:02:00.3]} 19... c6
{[%clk 0:02:13.8]} 20. Qe2 {[%clk 0:02:00.1]} 20... Rde8 {[%clk 0:02:01.6]} 21.
g4 {[%clk 0:01:53.8]} 21... f6 {[%clk 0:01:41.3]} 22. gxf5 {[%clk 0:01:33.2]}
22... fxg5 {[%clk 0:01:31.7]} 23. fxe6 {[%clk 0:01:33.5]} 23... Qxe6 {[%clk
0:01:30.8]} 24. hxg5 {[%clk 0:01:33.7]} 24... Nc4 {[%clk 0:01:27.7]} 25. Rh4
{[%clk 0:01:33]} 25... g6 {[%clk 0:01:25.3]} 26. Kf2 {[%clk 0:01:25.6]} 26...
Rhf8 {[%clk 0:01:24.3]} 27. Qd3 {[%clk 0:01:21.7]} 27... Rf5 {[%clk 0:01:10.2]}
28. f4 {[%clk 0:01:17.5]} 28... Rf7 {[%clk 0:01:08.5]} 29. Be3 {[%clk
0:01:10.8]} 29... Qf5 {[%clk 0:01:06.4]} 30. Qxf5 {[%clk 0:01:03.9]} 30... Rxf5
{[%clk 0:01:06.2]} 31. Ke2 {[%clk 0:01:02.2]} 31... Kc7 {[%clk 0:01:05.9]} 32.
Kd3 {[%clk 0:01:01.3]} 32... Kd7 {[%clk 0:01:04.6]} 33. Bc1 {[%clk 0:01:01.3]}
33... Ke6 {[%clk 0:01:03.2]} 34. Ra2 {[%clk 0:01:00.2]} 34... Rf7 {[%clk
0:01:03]} 35. Ra1 {[%clk 0:00:50.5]} 35... Kf5 {[%clk 0:00:59.5]} 36. Ra2 {[%clk
0:00:50.5]} 36... Rb7 {[%clk 0:00:59.2]} 37. Ra1 {[%clk 0:00:50.2]} 37... a5
{[%clk 0:00:59]} 38. Ra2 {[%clk 0:00:50.6]} 38... b5 {[%clk 0:00:58.1]} 39. Ra1
{[%clk 0:00:49.9]} 39... bxa4 {[%clk 0:00:53.6]} 40. Rxa4 {[%clk 0:00:50]} 40...
Rb1 {[%clk 0:00:53.6]} 41. Be3 {[%clk 0:00:50]} 41... Nb2+ {[%clk 0:00:53.4]}
0-1

[Event "Early-Titled-Tuesday-Blitz-February-13-2024"]
[Site "Chess.com"]
[Date "2024.02.13"]
[Round "6"]
[White "ProChessWICTH"]
[Black "levallem"]
[Result "1-0"]
[WhiteElo "2522"]
[BlackElo "2328"]
[TimeControl "180+1"]
[EndTime "9:08:48 PST"]
[Termination "ProChessWICTH won by checkmate"]

1. e4 {[%clk 0:03:00.9]} 1... c6 {[%clk 0:02:51.9]} 2. d4 {[%clk 0:02:58.5]}
2... d5 {[%clk 0:02:52.4]} 3. e5 {[%clk 0:02:58.7]} 3... Bf5 {[%clk 0:02:52]} 4.
h4 {[%clk 0:02:59]} 4... h5 {[%clk 0:02:51.5]} 5. Bd3 {[%clk 0:02:59.5]} 5...
Bxd3 {[%clk 0:02:51.3]} 6. Qxd3 {[%clk 0:03:00.4]} 6... e6 {[%clk 0:02:51.7]} 7.
Bg5 {[%clk 0:02:58.3]} 7... Be7 {[%clk 0:02:51.7]} 8. Nf3 {[%clk 0:02:58.5]}
8... Nd7 {[%clk 0:02:51.3]} 9. Nbd2 {[%clk 0:02:57.3]} 9... Qc7 {[%clk
0:02:49.4]} 10. c4 {[%clk 0:02:55.8]} 10... f6 {[%clk 0:02:43.6]} 11. Qg6+
{[%clk 0:02:50.5]} 11... Kf8 {[%clk 0:02:43.2]} 12. Bf4 {[%clk 0:02:45.2]} 12...
Qa5 {[%clk 0:02:35.1]} 13. exf6 {[%clk 0:02:01.6]} 13... Bxf6 {[%clk 0:02:26.2]}
14. Bd6+ {[%clk 0:01:51.3]} 14... Ne7 {[%clk 0:02:26]} 15. Ng5 {[%clk
0:01:44.3]} 15... Bxg5 {[%clk 0:02:13.8]} 16. hxg5 {[%clk 0:01:45.2]} 16... dxc4
{[%clk 0:02:08.7]} 17. Qxe6 {[%clk 0:01:32.5]} 17... Re8 {[%clk 0:01:56.7]} 18.
Qxd7 {[%clk 0:01:29.2]} 18... c3 {[%clk 0:01:56.9]} 19. bxc3 {[%clk 0:01:07.1]}
19... Qxc3 {[%clk 0:01:57.8]} 20. Qf5+ {[%clk 0:00:29]} 20... Kg8 {[%clk
0:01:56]} 21. Qe6+ {[%clk 0:00:29.2]} 21... Kf8 {[%clk 0:01:50.6]} 22. Rh3
{[%clk 0:00:20.7]} 22... Qxa1+ {[%clk 0:01:49.8]} 23. Ke2 {[%clk 0:00:21.4]}
23... Rh6 {[%clk 0:01:05.3]} 24. gxh6 {[%clk 0:00:20.1]} 24... gxh6 {[%clk
0:00:51.6]} 25. Rf3+ {[%clk 0:00:20.3]} 25... Kg7 {[%clk 0:00:51.9]} 26. Qf7+
{[%clk 0:00:20.3]} 26... Kh8 {[%clk 0:00:50.2]} 27. Be5# {[%clk 0:00:20.8]} 1-0